fUSD/lending_fUSD_20250618
["ID","MTS","AMOUNT","RATE_DAILY","PERIOD"]
[366465656,1750270239319,-150.0,0.00019734,2]
[366465658,1750270239331,-150.0,0.00019734,2]
[366465661,1750270239343,-150.0,0.00019735,2]
[366465663,1750270239357,-150.0,0.00019771,2]
[366465665,1750270239369,-150.0,0.00019778,2]
[366465668,1750270239381,-150.0,0.00019782,2]
[366465670,1750270239394,-150.0,0.00019783,2]
[366465672,1750270239405,-236.27202922,0.00019796,2]
[366465674,1750270239416,-150.0,0.00019816,2]
[366465676,1750270239428,-150.0,0.0001982,2]
[366465678,1750270239438,-150.0,0.0001983,2]
[366465681,1750270239452,-150.0,0.00019858,2]
[366465683,1750270239467,-150.0,0.00019863,2]
[366465686,1750270239479,-150.0,0.00019877,2]
[366465688,1750270239490,-150.0,0.00019883,2]
[366465690,1750270239500,-171.55203436,0.000199,2]
[366465692,1750270239510,-164.52138353,0.000199,2]
[366465694,1750270239522,-150.0,0.0001991,2]
[366465696,1750270239534,-150.0,0.00019918,2]
[366465699,1750270239546,-150.0,0.00019925,2]
[366465701,1750270239557,-150.0,0.00019935,2]
[366465703,1750270239570,-150.0,0.0001995,2]
[366465705,1750270239581,-24757.35099444,0.00019985,2]
[366465708,1750270239592,-323.54238834,0.00019989,2]
[366465710,1750270239604,-472.34927588,0.00019989,2]
[366465713,1750270239616,-239.17065142,0.0001999,2]
[366465715,1750270239634,-17807.08484238,0.0001999,2]
[366465718,1750270239645,-150.37,0.0001999,2]
[366465720,1750270239656,-150.37,0.0001999,2]
[366465722,1750270239667,-150.37,0.0001999,2]
[366465724,1750270239679,-150.37,0.0001999,2]
[366465726,1750270239690,-150.37,0.0001999,2]
[366465728,1750270239702,-150.37,0.0001999,2]
[366465731,1750270239713,-150.37,0.0001999,2]
[366465733,1750270239724,-150.37,0.0001999,2]
[366465735,1750270239735,-300.0,0.00019999,2]
[366465737,1750270239746,-300.0,0.00019999,2]
[366465739,1750270239758,-300.0,0.00019999,2]
[366465741,1750270239769,-176.21,0.00019999,2]
[366465744,1750270239779,-150.0,0.00019999,2]
[366465746,1750270239791,-38980.98640043,0.0002,2]
[366465849,1750270240942,-481.942,0.0002,2]
[366465850,1750270241062,-3007.10158479,0.0002,2]
[366465851,1750270241141,-9480.14645391,0.0002,2]
[366465862,1750270242691,-2671.70438012,0.0002,2]
[366465863,1750270242700,-1370.99767091,0.0002,2]
[366465864,1750270242710,-6603.54794898,0.0002,2]
[366465865,1750270242909,-1407.24617463,0.0002,2]
[366465875,1750270245791,-23224.3968792,0.0002,2]
[366465876,1750270245822,-1928.34797702,0.0002,2]
[366465877,1750270245834,-3780.482625,0.0002,2]
[366465878,1750270246018,-8564.33902993,0.0002,2]
[366465879,1750270246029,-1898.14446786,0.0002,2]
[366465881,1750270332343,204.0,0.00015121,2]
[366465883,1750270391558,209.0,0.00015121,2]
[366465887,1750270549965,401.69,0.00024657,120]
[366465897,1750271126974,246.59651518,0.000108,2]
[366465898,1750271138519,2446.38051852,9e-05,2]
[366465899,1750271157088,11631.05159794,6.94e-05,2]
[366465901,1750271161584,300.0,6.939e-05,2]
[366465905,1750271162015,420.0,7.633e-05,2]
[366465906,1750271162769,587.0,8.396e-05,2]
[366465907,1750271163877,823.0,9.236e-05,2]
[366465908,1750271168997,9004.48925427,0.0001,2]
[366465912,1750271185705,2629.80218808,0.00024658,120]
[366465932,1750271322232,144411.84,0.000151,2]
[366465933,1750271328235,49337.78196525,0.00016,2]
[366465946,1750271402396,202.0,0.00013699,2]
[366465950,1750271431734,-208.063464,0.00016438,2]
[366465951,1750271431745,-159.941302,0.00016438,2]
[366465952,1750271431755,-208.063464,0.00016438,2]
[366465953,1750271431765,-208.063464,0.00016931,2]
[366465954,1750271431775,-208.063464,0.00017095,2]
[366465955,1750271431784,-143.656242,0.00017498,2]
[366465956,1750271431841,-159.541778,0.00016438,2]
[366465957,1750271431851,-456.343758,0.00017498,2]
[366465958,1750271431860,-594.44053037,0.00017498,2]
[366465959,1750271431871,-605.55946963,0.00017498,2]
[366465960,1750271431880,-304.49,0.00017498,2]
[366465961,1750271431890,-300.68,0.00017499,2]
[366465962,1750271431899,-302.87,0.00017499,2]
[366465963,1750271431909,-302.57,0.00017499,2]
[366465964,1750271431919,-305.36,0.00017499,2]
[366465965,1750271431931,-305.55,0.00017499,2]
[366465966,1750271431940,-1000.0,0.00017499,2]
[366465967,1750271431950,-294.74766466,0.00017499,2]
[366465968,1750271431959,-245.04415365,0.00017499,2]
[366465969,1750271431969,-500.0,0.00017499,2]
[366465970,1750271431979,-568.48892865,0.00017499,2]
[366465971,1750271431988,-500.0,0.00017499,2]
[366465972,1750271431998,-250.0,0.00017499,2]
[366465973,1750271432010,-1384.54834911,0.000175,2]
[366465976,1750271432022,-613.16359962,0.000175,2]
[366465981,1750271432071,-3071.57969407,0.000175,2]
[366465984,1750271432083,-67984.21405143,0.000175,2]
[366465991,1750271432143,-1682.33057766,0.000175,2]
[366465993,1750271432155,-45701.6624467,0.000175,2]
[366465995,1750271432165,-305.11,0.000175,2]
[366465997,1750271432174,-301.83,0.000175,2]
[366465998,1750271432184,-300.98,0.000175,2]
[366465999,1750271432194,-304.89,0.000175,2]
[366466001,1750271432204,-301.3,0.000175,2]
[366466003,1750271432214,-202.0,0.00017731,2]
[366466006,1750271432224,-481.03,0.00018284,2]
[366466009,1750271432234,-16729.75,0.00018333,2]
[366466012,1750271432244,-156.0,0.00018335,2]
[366466015,1750271432254,-202.0,0.00018593,3]
[366466017,1750271432264,-305.25,0.00018629,2]
[366466019,1750271432274,-301.08,0.0001863,2]
[366466021,1750271432283,-305.26,0.00018631,2]
[366466023,1750271432293,-303.22,0.00018633,2]
[366466025,1750271432302,-303.06,0.00018637,2]
[366466027,1750271432311,-305.5,0.00018637,2]
[366466030,1750271432320,-303.23,0.0001864,2]
[366466033,1750271432330,-304.84,0.00018645,2]
[366466035,1750271432340,-303.38,0.00018653,2]
[366466037,1750271432350,-305.92,0.00018653,2]
[366466039,1750271432359,-303.19,0.00018662,2]
[366466041,1750271432368,-320.16,0.00018671,2]
[366466043,1750271432377,-300.51,0.00018677,2]
[366466045,1750271432387,-304.34,0.00018677,2]
[366466047,1750271432397,-301.23,0.00018695,2]
[366466049,1750271432406,-322.18,0.00018747,2]
[366466051,1750271432415,-500.42,0.00018815,2]
[366466053,1750271432425,-502.58,0.00018815,2]
[366466055,1750271432435,-861.24791316,0.000189,2]
[366466057,1750271432446,-491.13,0.0001891,2]
[366466059,1750271432455,-423.57755024,0.0001891,2]
[366466337,1750271438425,-85.63244976,0.0001891,2]
[366466338,1750271438435,-1000.0,0.00018956,2]
[366466339,1750271438444,-2255.34993326,0.0001897,2]
[366466340,1750271438524,-499.11804958,0.0001897,2]
[366466341,1750271438555,-4831.18865516,0.0001897,2]
[366466342,1750271440569,-634.17894353,0.0001897,2]
[366466343,1750271440598,-15680.16441847,0.0001897,2]
[366466344,1750271440609,-45.83558153,0.00018982,2]
[366466345,1750271440673,-796.24777386,0.00018982,2]
[366466346,1750271440685,-374.43,0.00018982,2]
[366466375,1750271442981,-671.21410645,0.00018982,2]
[366466377,1750271443077,-125.55762975,0.00018982,2]
[366466378,1750271443088,-523.6322616,0.00019082,2]
[366466379,1750271443137,-142.3677384,0.00019082,2]
[366466380,1750271443146,-250.0,0.0001912,2]
[366466381,1750271443156,-151.0,0.00019178,2]
[366466382,1750271443165,-171.13,0.00019178,2]
[366466383,1750271443175,-720.0,0.00019247,2]
[366466384,1750271443185,-4235.38921257,0.000194,2]
[366466385,1750271443195,-202.0,0.00019456,4]
[366466386,1750271443204,-2000.0,0.000195,2]
[366466387,1750271443214,-861.24791296,0.00019521,2]
[366466388,1750271443224,-11417.14556411,0.0001958,2]
[366466393,1750271445981,-3350.49551356,0.0001958,2]
[366466533,1750272427479,214.22,0.00013699,2]
[366466575,1750272620389,602.0,0.00018,30]
[366466624,1750272632786,-1075.1363935,0.00016324,2]
[366466626,1750272632796,-300.0,0.0001638,2]
[366466628,1750272632805,-212.0,0.00016437,2]
[366466630,1750272632815,-300.0,0.00016437,2]
[366466632,1750272632825,-1200.0,0.00016437,2]
[366466634,1750272632834,-129.74858585,0.00016438,2]
[366466636,1750272632846,-174.51141415,0.00016438,2]
[366466638,1750272632855,-305.37,0.00016438,2]
[366466640,1750272632865,-304.44,0.00016438,2]
[366466642,1750272632875,-304.06,0.00016438,2]
[366466644,1750272632884,-305.97,0.00016438,2]
[366466646,1750272632894,-305.45,0.00016438,2]
[366466648,1750272632904,-301.01,0.00016438,2]
[366466650,1750272632913,-300.3,0.00016438,2]
[366466652,1750272632923,-151.90478306,0.00016438,2]
[366466655,1750272632936,-149.53521694,0.00016438,2]
[366466656,1750272632946,-302.05,0.00016438,2]
[366466658,1750272632956,-303.83,0.00016438,2]
[366466660,1750272632965,-187.17280731,0.00016438,2]
[366466665,1750272632995,-112.96719269,0.00016438,2]
[366466666,1750272633005,-303.01,0.00016438,2]
[366466668,1750272633014,-301.41,0.00016438,2]
[366466671,1750272633025,-303.78,0.00016438,2]
[366466673,1750272633035,-304.35,0.00016438,2]
[366466674,1750272633045,-301.32,0.00016439,2]
[366466676,1750272633055,-305.89,0.00016439,2]
[366466678,1750272633065,-499.56,0.00016441,2]
[366466680,1750272633075,-496.11,0.00016441,2]
[366466682,1750272633085,-304.76,0.00016445,2]
[366466684,1750272633096,-179.07756861,0.00016493,2]
[366466687,1750272633110,-124.41243139,0.00016493,2]
[366466689,1750272633120,-226.34859242,0.00016493,2]
[366466704,1750272633262,-75.29140758,0.00016493,2]
[366466706,1750272633273,-500.0,0.000172,2]
[366466708,1750272633286,-202.0,0.00017319,2]
[366466710,1750272633295,-514.08355955,0.0001732,2]
[366466712,1750272633305,-500.0,0.0001732,2]
[366466714,1750272633315,-500.0,0.0001732,2]
[366466716,1750272633324,-151.0,0.00017373,2]
[366466718,1750272633335,-151.0,0.00017373,2]
[366466720,1750272633346,-1957.856,0.00017373,2]
[366466722,1750272633356,-207.4,0.00017373,2]
[366466724,1750272633367,-1957.85600001,0.00017428,2]
[366466726,1750272633378,-488.52,0.00017534,2]
[366466728,1750272633389,-150.0,0.00017609,2]
[366466730,1750272633399,-500.0,0.00017748,2]
[366466732,1750272633409,-372.5,0.0001776,2]
[366466734,1750272633419,-327.0,0.00017779,2]
[366466736,1750272633431,-500.0,0.00017868,2]
[366466738,1750272633441,-500.0,0.00017868,2]
[366466740,1750272633452,-908.34242671,0.000179,2]
[366466743,1750272633463,-300.0,0.00017956,2]
[366466745,1750272633473,-300.0,0.00017971,2]
[366466747,1750272633483,-150.0,0.00018,2]
[366466749,1750272633493,-150.0,0.00018,2]
[366466751,1750272633503,-300.0,0.00018066,2]
[366466753,1750272633513,-161.09,0.00018088,2]
[366466755,1750272633523,-1000.0,0.00018155,2]
[366466757,1750272633533,-666.0,0.0001816,2]
[366466759,1750272633542,-202.0,0.0001819,3]
[366466761,1750272633552,-5358.0,0.000182,5]
[366466763,1750272633562,-161.14,0.0001846,2]
[366466765,1750272633572,-156.05,0.0001846,2]
[366466767,1750272633582,-156.05,0.00018466,2]
[366466769,1750272633593,-156.05,0.00018472,2]
[366466771,1750272633603,-156.05,0.00018478,2]
[366466773,1750272633613,-156.05,0.00018484,2]
[366466775,1750272633624,-156.05,0.0001849,2]
[366466777,1750272633635,-156.05,0.00018497,2]
[366466779,1750272633645,-156.05,0.00018503,2]
[366466781,1750272633655,-156.05,0.00018509,2]
[366466783,1750272633666,-156.05,0.00018515,2]
[366466785,1750272633676,-156.05,0.00018521,2]
[366466787,1750272633687,-156.05,0.00018527,2]
[366466789,1750272633698,-156.05,0.00018534,2]
[366466791,1750272633707,-156.05,0.0001854,2]
[366466793,1750272633717,-156.05,0.00018546,2]
[366466795,1750272633727,-156.05,0.00018552,2]
[366466797,1750272633737,-908.34242655,0.00018555,2]
[366466799,1750272633746,-13668.34326462,0.00018628,2]
[366467209,1750272638049,-281.78311804,0.00018628,2]
[366467211,1750272638060,-523.15,0.00018628,2]
[366467382,1750272639714,-1850.16,0.00018628,2]
[366467486,1750272640815,-1048.7,0.00018628,2]
[366467488,1750272640826,-876.63487176,0.00018628,2]
[366467501,1750272640935,-5651.22874558,0.00018628,2]
[366467503,1750272640945,-250.0,0.00018697,2]
[366467505,1750272640954,-156.587,0.00018742,2]
[366467507,1750272640964,-215.0738,0.00018742,2]
[366467509,1750272640974,-1573.84,0.00018911,2]
[366467511,1750272640984,-155.0,0.00018923,2]
[366467513,1750272640993,-167.28,0.00019013,2]
[366467515,1750272641003,-500.0,0.00019014,2]
[366467517,1750272641012,-202.0,0.00019061,4]
[366467519,1750272641021,-151.0,0.00019178,2]
[366467521,1750272641031,-91.44627267,0.00019178,2]
[366467523,1750272641042,-79.68372733,0.00019178,2]
[366467525,1750272641052,-1000.0,0.000192,2]
[366467527,1750272641061,-908.34242655,0.0001921,2]
[366467529,1750272641071,-21015.33,0.00019339,2]
[366467531,1750272641080,-18709.57,0.00019339,2]
[366467533,1750272641090,-500.0,0.00019565,2]
[366467535,1750272641099,-500.0,0.00019565,2]
[366467537,1750272641108,-500.0,0.00019565,2]
[366467539,1750272641117,-17761.59892233,0.00019566,2]
[366467541,1750272641127,-166.67,0.00019593,2]
[366467543,1750272641136,-17761.57,0.000196,2]
[366467545,1750272641146,-156.587,0.00019726,2]
[366467547,1750272641155,-458.656111,0.00019729,2]
[366467549,1750272641164,-1164.67,0.00019739,2]
[366467551,1750272641174,-164.81679604,0.00019765,2]
[366467553,1750272641183,-184.47550541,0.00019769,2]
[366467555,1750272641194,-2408.50884562,0.0001977,2]
[366467557,1750272641203,-1000.0,0.0001977,2]
[366467559,1750272641213,-12118.73012983,0.0001977,2]
[366467567,1750272641272,-500.0,0.00019565,2]
[366467569,1750272641283,-205.03797486,0.00019565,2]
[366467571,1750272641293,-1692.06825264,0.0001977,2]
[366467762,1750272643585,-41044.04491753,0.0001977,2]
[366467764,1750272643595,-437.5533,0.0001977,2]
[366467766,1750272643605,-685.49883545,0.0001978,2]
[366467768,1750272643615,-27310.94040963,0.0001978,2]
[366467770,1750272643624,-13584.37049731,0.0001978,2]
[366467772,1750272643634,-5160.0,0.000198,2]
[366467774,1750272643643,-5000.0,0.000198,2]
[366467776,1750272643653,-168.0,0.00019828,2]
[366467778,1750272643662,-1724.562,0.00019845,2]
[366467780,1750272643672,-185.53380138,0.00019851,2]
[366467782,1750272643681,-150.37,0.00019855,2]
[366467784,1750272643691,-426.65942759,0.00019862,2]
[366467786,1750272643709,-330.64449311,0.00019862,2]
[366467788,1750272643719,-205.49267606,0.00019862,2]
[366467790,1750272643728,-108266.88395323,0.00019863,2]
[366468051,1750272646205,-833.92080167,0.00019825,2]
[366468053,1750272646215,-109024.55498913,0.00019863,2]
[366468055,1750272646227,-399648.96655697,0.00019863,2]
[366468057,1750272646238,-89983.73776882,0.00019863,2]
[366468460,1750273279711,1034.45996362,0.00024658,120]
[366468463,1750273444771,224.72,0.00013699,2]
[366468474,1750273721795,201.0,0.00015932,2]
[366468537,1750273832096,-201.0,0.00016779,3]
[366468538,1750273832106,-564.23457898,0.00017133,2]
[366468539,1750273832116,-201.0,0.00017627,4]
[366468540,1750273832126,-300.0,0.00017781,2]
[366468541,1750273832135,-600.0,0.00017781,2]
[366468542,1750273832145,-1200.0,0.00017781,2]
[366468543,1750273832154,-189.45582974,0.00017782,2]
[366468544,1750273832166,-111.59417026,0.00017782,2]
[366468545,1750273832176,-302.56,0.00017782,2]
[366468546,1750273832186,-239.31032149,0.00017782,2]
[366468547,1750273832305,-63.06967851,0.00017782,2]
[366468548,1750273832315,-303.6,0.00017782,2]
[366468549,1750273832324,-296.56032149,0.00017782,2]
[366468550,1750273832336,-4.25967851,0.00017782,2]
[366468551,1750273832346,-304.66,0.00017782,2]
[366468552,1750273832355,-302.86,0.00017782,2]
[366468553,1750273832365,-305.23,0.00017782,2]
[366468554,1750273832375,-305.69,0.00017782,2]
[366468555,1750273832384,-303.06,0.00017797,2]
[366468556,1750273832397,-302.39,0.00017797,2]
[366468557,1750273832407,-305.69,0.00017797,2]
[366468558,1750273832416,-302.69,0.00017797,2]
[366468559,1750273832426,-303.25,0.00017797,2]
[366468560,1750273832435,-304.22,0.00017797,2]
[366468561,1750273832444,-304.22,0.00017797,2]
[366468562,1750273832454,-303.97,0.00017797,2]
[366468563,1750273832463,-305.62,0.00017798,2]
[366468564,1750273832472,-305.79,0.00017798,2]
[366468565,1750273832483,-305.46,0.00017798,2]
[366468566,1750273832492,-304.1,0.00017798,2]
[366468567,1750273832502,-720.63111681,0.00017798,2]
[366468568,1750273832514,-305.51,0.00017798,2]
[366468569,1750273832523,-305.03,0.00017798,2]
[366468570,1750273832533,-302.33,0.00017798,2]
[366468571,1750273832543,-833.92080167,0.00017799,2]
[366468572,1750273832552,-304.42,0.00017799,2]
[366468573,1750273832561,-301.84,0.00017799,2]
[366468574,1750273832570,-305.14,0.00017799,2]
[366468576,1750273832579,-305.74,0.00017799,2]
[366468578,1750273832589,-305.2,0.00017799,2]
[366468580,1750273832599,-301.99,0.00017799,2]
[366468582,1750273832608,-305.68,0.00017799,2]
[366468584,1750273832618,-300.0,0.000178,2]
[366468586,1750273832628,-2000.0,0.000178,2]
[366468588,1750273832639,-504.67,0.000178,2]
[366468590,1750273832649,-509.36,0.000178,2]
[366468592,1750273832659,-304.06,0.000178,2]
[366468594,1750273832669,-501.4,0.000178,2]
[366468596,1750273832680,-493.48,0.000178,2]
[366468598,1750273832690,-305.89,0.000178,2]
[366468600,1750273832699,-302.91,0.000178,2]
[366468602,1750273832709,-301.89,0.000178,2]
[366468604,1750273832719,-305.94,0.000178,2]
[366468606,1750273832728,-301.73,0.000178,2]
[366468608,1750273832738,-305.82,0.000178,2]
[366468610,1750273832748,-301.88,0.000178,2]
[366468612,1750273832757,-300.15,0.000178,2]
[366468614,1750273832767,-300.09,0.000178,2]
[366468616,1750273832777,-267.25822858,0.000178,2]
[366468618,1750273832790,-157.27,0.00018,2]
[366468620,1750273832800,-150.0,0.00018,2]
[366468622,1750273832809,-667.6,0.00018011,2]
[366468624,1750273832819,-200.0,0.00018042,2]
[366468626,1750273832831,-5512.68,0.00018061,2]
[366468628,1750273832841,-7503.86,0.00018203,2]
[366468630,1750273832850,-2635.2,0.00018203,2]
[366468632,1750273832860,-23900.0,0.00018203,2]
[366468634,1750273832870,-150.0,0.00018203,2]
[366468636,1750273832880,-606.31,0.00018205,2]
[366468638,1750273832890,-464.88,0.00018369,2]
[366468640,1750273832900,-500.0,0.00018411,2]
[366468642,1750273832910,-170.0,0.00018418,2]
[366468644,1750273832920,-201.0,0.00018474,5]
[366468646,1750273832929,-666.0,0.000185,2]
[366468648,1750273832939,-250.0,0.00018547,2]
[366468651,1750273832950,-1000.0,0.00018577,2]
[366468652,1750273832959,-167.57,0.0001858,2]
[366468654,1750273832969,-628.06,0.00018606,2]
[366468656,1750273832980,-301.11,0.00018627,2]
[366468658,1750273832990,-162.11,0.00018829,2]
[366468660,1750273833000,-157.33,0.00018877,2]
[366468662,1750273833010,-200.0,0.00018877,2]
[366468664,1750273833020,-817.50818404,0.000189,2]
[366468667,1750273833031,-1957.856,0.00018962,2]
[366468668,1750273833041,-207.4,0.00018962,2]
[366468671,1750273833050,-151.0,0.00018962,2]
[366468672,1750273833061,-209.99193109,0.00018962,2]
[366468673,1750273833071,-151.0,0.00018962,2]
[366468674,1750273833083,-157.33,0.00018972,2]
[366468675,1750273833092,-2030.296672,0.00019017,2]
[366468676,1750273833102,-151.0,0.00019178,2]
[366468677,1750273833112,-171.13,0.00019178,2]
[366468678,1750273833122,-201.0,0.00019322,6]
[366468679,1750273833132,-166.64,0.00019506,2]
[366468680,1750273833142,-817.50818389,0.00019521,2]
[366468681,1750273833152,-720.0,0.00019559,2]
[366468682,1750273833161,-300.0,0.00019579,2]
[366468683,1750273833172,-600.0,0.0001958,4]
[366468685,1750273833183,-401.324097,0.00019599,2]
[366468687,1750273833194,-700.0,0.000196,7]
[366468689,1750273833204,-1400.0,0.000197,7]
[366468691,1750273833213,-868.48676193,0.00019711,2]
[366468693,1750273833223,-156.587,0.00019726,2]
[366468695,1750273833233,-2500.0,0.0001978,2]
[366468697,1750273833243,-163.44537752,0.000198,2]
[366468699,1750273833253,-2200.0,0.000198,7]
[366468701,1750273833263,-770.0,0.000198,2]
[366468703,1750273833273,-200.0,0.0001984,2]
[366468704,1750273833283,-1379.65,0.00019851,2]
[366468706,1750273833293,-245.00421943,0.00019862,2]
[366468707,1750273833303,-31190.28281828,0.00019863,2]
[366468708,1750273833313,-3054.48018425,0.0001987,2]
[366468709,1750273833323,-168.0,0.00019879,2]
[366468710,1750273833333,-76896.17099325,0.0001988,2]
[366468711,1750273833370,-600.0,0.0001988,2]
[366468739,1750273838009,-176.7552991,0.00019788,2]
[366468740,1750273838019,-9347.42908704,0.0001988,2]
[366468741,1750273838030,-264.52,0.0001988,2]
[366468743,1750273838123,-4975.661931,0.0001988,2]
[366468744,1750273838159,-514.06266125,0.0001988,2]
[366468745,1750273838222,-20740.0,0.0001988,2]
[366468952,1750273840248,-39343.33322953,0.0001988,2]
[366468958,1750273840298,-42596.51458922,0.0001988,2]
[366468960,1750273840308,-11024.0290348,0.00019889,2]
[366468962,1750273840317,-231.45114518,0.00019899,2]
[366468964,1750273840327,-356.36047009,0.00019899,2]
[366468966,1750273840336,-34587.48736072,0.000199,2]
[366468980,1750273840457,-1562.55,0.000199,2]
[366469147,1750273842158,201.99998,0.00015932,2]
[366469351,1750273843821,-1664.1,0.000199,2]
[366469587,1750273846259,-2644.4,0.000197,5]
[366469595,1750273846323,-2713.6,0.000197,5]
[366469597,1750273846334,-62168.60692963,0.000199,2]
[366469599,1750273846345,-340.465073,0.000199,2]
[366469603,1750273846375,-60676.76996814,0.000199,2]
[366469608,1750273846406,-481.45863972,0.000199,2]
[366469610,1750273846418,-1887.93116305,0.000199,2]
[366469612,1750273846430,-879.85,0.000199,2]
[366469614,1750273846442,-625.01808059,0.000199,2]
[366469620,1750273846485,-8769.79606435,0.000199,2]
[366469622,1750273846496,-2443.6546611,0.000199,3]
[366469624,1750273846508,-2172.91492049,0.000199,3]
[366469626,1750273846519,-161.30135285,0.000199,3]
[366469628,1750273846529,-171.55203436,0.000199,2]
[366469630,1750273846538,-162.69437358,0.000199,2]
[366469632,1750273846548,-153.64747841,0.000199,2]
[366469634,1750273846558,-555.90475328,0.000199,2]
[366469636,1750273846570,-4444.09524672,0.000199,2]
[366469638,1750273846580,-237.0,0.000199,2]
[366469640,1750273846591,-877.11115233,0.000199,7]
[366469642,1750273846603,-2022.88884767,0.000199,7]
[366469644,1750273846612,-376.0,0.000199,2]
[366469647,1750273846623,-400.0,0.0001997,2]
[366469649,1750273846633,-500.0,0.00019973,2]
[366469650,1750273846646,-500.0,0.00019973,2]
[366469652,1750273846656,-500.0,0.00019973,2]
[366469654,1750273846665,-279.20682135,0.00019973,2]
[366469657,1750273846679,-220.79317865,0.00019973,2]
[366469659,1750273846690,-167.9817986,0.00019973,2]
[366469661,1750273846700,-500.0,0.00019973,2]
[366469662,1750273846710,-362.3241401,0.00019973,2]
[366469665,1750273846722,-500.0,0.00019973,2]
[366469666,1750273846731,-500.0,0.00019973,2]
[366469668,1750273846741,-500.0,0.00019973,2]
[366469671,1750273846752,-150.37,0.0001999,2]
[366469673,1750273846762,-150.37,0.0001999,2]
[366469675,1750273846772,-150.37,0.0001999,2]
[366469677,1750273846781,-150.37,0.0001999,2]
[366469678,1750273846791,-150.37,0.0001999,2]
[366469680,1750273846801,-150.37,0.0001999,2]
[366469682,1750273846810,-150.37,0.0001999,2]
[366469684,1750273846820,-150.37,0.0001999,2]
[366469686,1750273846830,-150.37,0.0001999,2]
[366469688,1750273846839,-150.37,0.0001999,2]
[366469690,1750273846849,-150.37,0.0001999,2]
[366469692,1750273846859,-150.37,0.0001999,2]
[366469694,1750273846868,-169.02903,0.00019996,2]
[366469696,1750273846878,-170.96478,0.00019996,2]
[366469699,1750273846889,-151.0,0.00019996,2]
[366469701,1750273846899,-151.0,0.00019996,2]
[366469702,1750273846910,-151.527042,0.00019996,2]
[366469705,1750273846920,-151.0,0.00019996,2]
[366469707,1750273846931,-151.0,0.00019996,2]
[366469708,1750273846941,-207.215091,0.00019996,2]
[366469710,1750273846950,-257.268106,0.00019996,2]
[366469713,1750273846960,-257.268106,0.00019996,2]
[366469715,1750273846970,-151.0,0.00019996,2]
[366469717,1750273846980,-3267.4671817,0.00019996,2]
[366469718,1750273846989,-151.0,0.00019996,2]
[366469721,1750273846999,-206.536721,0.00019996,2]
[366469722,1750273847008,-151.0,0.00019996,2]
[366469724,1750273847018,-151.0,0.00019996,2]
[366469726,1750273847027,-213.723896,0.00019996,2]
[366469728,1750273847037,-335.46092895,0.00019996,2]
[366469731,1750273847050,-623.04007,0.00019996,2]
[366469784,1750273847743,-445.94392515,0.00019996,2]
[366469785,1750273847754,-194.258977,0.00019996,2]
[366469786,1750273847764,-9784.12989785,0.00019996,2]
[366469791,1750273847807,-1000.0,0.00019996,2]
[366469793,1750273847820,-727.70944775,0.00019996,2]
[366469794,1750273847829,-162.06378338,0.00019996,2]
[366469797,1750273847842,-77.83606462,0.00019996,2]
[366469798,1750273847852,-151.0,0.00019996,2]
[366469800,1750273847862,-151.0,0.00019996,2]
[366469802,1750273847872,-151.0,0.00019996,2]
[366469804,1750273847882,-156.475276,0.00019996,2]